[Event "WYCC 2018 O16"]
[Site "Halkidiki"]
[Date "2018.10.20"]
[Round "1"]
[White "French, Max"]
[Black "Ibrahimli, Murad"]
[Result "1/2-1/2"]
[ECO "E12"]
[WhiteElo "2074"]
[BlackElo "2379"]
[Annotator "NA"]
[PlyCount "89"]
[EventDate "2018.10.20"]
[EventType "swiss"]
[EventCountry "GRE"]
[SourceTitle "playchess.com"]
[Source "ChessBase"]
[SourceQuality "1"]
[TimeControl "40/5400+30:1800+30"]

1. d4 {[%emt 0:00:00]} Nf6 {[%emt 0:00:00]} 2. c4 {[%emt 0:00:00]} e6 {[%emt 0:00:00]} 3. Nf3 {[%emt 0:00:00]} b6 {[%emt 0:01:17]} 4. a3 {[%emt 0:00:05]} Ba6 {[%emt 0:00:13]} 5. Qb3 {[%emt 0:00:56]} d5 {[%emt 0:03:28]} 6. cxd5 {[%emt 0:00:26] E12: Queen's Indian: Unusual White 4th moves, 4 a3, 4 Nc3 Bb7 5 a3 and 4 Nc3 Bb7} exd5 {[%emt 0:00:13]} 7. Nc3 {[%emt 0:01:28]} Be7 {[%emt 0:02:09]} 8. Bg5 {[%emt 0:00:48]} (8. g3 O-O 9. Bg2 Bb7 10. O-O Nbd7 11. Nh4 g6 12. Bf4 c5 13. Nf3 cxd4 14. Nxd4 {½-½ (64) Bukavshin,I (2657)-Bocharov,D (2558) Khanty-Mansiysk 2015}) 8... Bb7 {[%emt 0:01:52]} 9. g3 $146 {[%emt 0:05:16]} ({Predecessor:} 9. Bxf6 Bxf6 10. e3 O-O 11. Bd3 c6 12. O-O Na6 13. Rad1 Nc7 {1-0 (42) Deepan Chakkravarthy,J (2530)-Roubalik,J (2402) Arad 2018}) 9... O-O {[%emt 0:01:29]} 10. Bxf6 {[%emt 0:01:07]} Bxf6 {[%emt 0:00:16]} 11. Bg2 Na6 {[%emt 0:03:30]} 12. O-O {[%emt 0:03:22]} Re8 {[%emt 0:07:18]} 13. Rfe1 {[%emt 0:01:12]} c5 {[%emt 0:13:04]} 14. Rad1 {[%emt 0:05:57]} Rc8 {[%emt 0:11:23]} 15. Rd2 {[%emt 0:24:18]} Qd7 {[%emt 0:30:57]} 16. Qb5 {[%emt 0:07:06]} Qe7 {[%emt 0:03:11]} 17. Nxd5 {[%emt 0:12:44]} Bxd5 {[%emt 0:00:33]} 18. Qxa6 {[%emt 0:00:05]} Bxf3 {[%emt 0:02:19]} 19. Bxf3 {[%emt 0:00:08]} cxd4 {[%emt 0:05:53]} 20. Qd3 {[%emt 0:04:14]} Bg5 {[%emt 0:05:25]} 21. Rc2 {[%emt 0:01:15]} Rxc2 {[%emt 0:01:44]} 22. Qxc2 {[%emt 0:00:05]} g6 {[%emt 0:00:51]} 23. Rd1 {[%emt 0:01:28]} Rd8 {[%emt 0:01:44]} 24. Be4 {[%emt 0:07:13]} Qe6 {[%emt 0:01:02]} 25. f4 {[%emt 0:00:46]} Rc8 {[%emt 0:01:19]} 26. Qd3 {[%emt 0:01:01]} Bf6 {[%emt 0:00:06]} 27. f5 {[%emt 0:03:40]} Qe7 {[%emt 0:00:13]} 28. fxg6 {[%emt 0:00:21]} hxg6 {[%emt 0:00:16]} 29. Qf3 {[%emt 0:00:52]} Kg7 {[%emt 0:00:50]} 30. Bd3 {[%emt 0:02:12]} Bg5 {[%emt 0:00:47]} 31. Kg2 {[%emt 0:01:10]} Rc7 {[%emt 0:01:30]} 32. h4 {[%emt 0:01:39]} Rc1 {[%emt 0:00:31]} 33. Rf1 {[%emt 0:05:22]} Rxf1 {[%emt 0:00:15]} 34. Qxf1 {[%emt 0:00:04]} Be3 {[%emt 0:00:10]} 35. b4 {[%emt 0:04:25]} Qe6 {[%emt 0:00:23]} 36. Qf3 {[%emt 0:00:54]} Qe5 {[%emt 0:01:12]} 37. Bc4 {[%emt 0:01:06]} Qc7 {[%emt 0:00:11]} 38. Qd5 {[%emt 0:00:31]} Qe7 {[%emt 0:00:24]} 39. Qf3 {[%emt 0:01:20]} Qc7 {[%emt 0:00:55]} 40. Qd5 {[%emt 0:00:00]} Qe7 {[%emt 0:00:00]} 41. a4 $11 {[%emt 0:07:06]} Qf6 {[%emt 0:09:31]} 42. Qf3 {[%emt 0:01:23]} Bd2 {[%emt 0:00:38]} 43. b5 {[%emt 0:02:10]} Be1 {[%emt 0:04:17]} 44. Qxf6+ {[%emt 0:02:08]} Kxf6 {[%emt 0:00:02]} 45. Kh3 {[%emt 0:01:25]} 1/2-1/2

[Event "WYCC 2018 O16"]
[Site "Halkidiki"]
[Date "2018.10.20"]
[Round "1"]
[White "Carlsson, Ludvig"]
[Black "Lianes Garcia, Marcos"]
[Result "0-1"]
[ECO "C68"]
[WhiteElo "2058"]
[BlackElo "2376"]
[Annotator "NA"]
[PlyCount "142"]
[EventDate "2018.10.20"]
[EventType "swiss"]
[EventCountry "GRE"]
[SourceTitle "playchess.com"]
[Source "ChessBase"]
[SourceQuality "1"]
[TimeControl "40/5400+30:1800+30"]

1. e4 {[%emt 0:00:00]} e5 {[%emt 0:00:14]} 2. Nf3 {[%emt 0:00:00]} Nc6 {[%emt 0:01:10]} 3. Bb5 {[%emt 0:00:00]} a6 {[%emt 0:01:15]} 4. Bxc6 {[%emt 0:00:07]} dxc6 {[%emt 0:00:20]} 5. O-O {[%emt 0:00:10]} Bg4 {[%emt 0:01:19]} 6. h3 {[%emt 0:00:10]} h5 {[%emt 0:00:57]} 7. c3 {[%emt 0:00:08]} Qf6 {[%emt 0:16:32]} 8. d4 {[%emt 0:00:12]} Bxf3 {[%emt 0:05:33] C68: Ruy Lopez: Exchange Variation, sidelines} 9. Qxf3 {[%emt 0:00:11]} Qxf3 {[%emt 0:02:14]} 10. gxf3 {[%emt 0:00:10] LiveBook: 4 Partien} f6 {[%emt 0:11:59]} 11. f4 {[%emt 0:09:28]} exd4 {[%emt 0:06:57]} 12. cxd4 {[%emt 0:00:14]} O-O-O {[%emt 0:00:43]} 13. Be3 {[%emt 0:00:13]} f5 $146 {[%emt 0:00:52]} ({Predecessor:} 13... Nh6 14. Nc3 Rg8 15. Kh1 Be7 16. f5 {½-½ (64) Pritchard,D-Schnegelsberg,N Castlebar 1969}) 14. e5 $1 {[%emt 0:04:10]} Bb4 {[%emt 0:05:27]} 15. a3 {[%emt 0:02:22]} Ba5 {[%emt 0:00:39]} 16. b4 {[%emt 0:00:16]} Bb6 {[%emt 0:00:16]} 17. Rd1 {[%emt 0:00:09]} Ne7 {[%emt 0:00:42]} 18. Nc3 {[%emt 0:04:19]} Rhf8 {[%emt 0:12:18]} 19. Ne2 {[%emt 0:03:26]} Nd5 {[%emt 0:04:56]} 20. h4 {[%emt 0:00:21]} Kd7 {[%emt 0:05:50]} 21. Kg2 {[%emt 0:00:27]} g6 {[%emt 0:01:42]} 22. Rab1 {[%emt 0:01:48]} Ra8 {[%emt 0:03:59]} 23. Kf3 {[%emt 0:02:37]} Ke6 {[%emt 0:01:34]} 24. Rg1 {[%emt 0:00:44]} Rg8 {[%emt 0:00:13]} 25. Bd2 {[%emt 0:04:29]} Kf7 {[%emt 0:00:12]} 26. Ra1 {[%emt 0:03:36]} Rgd8 {[%emt 0:01:48]} 27. Rgb1 {[%emt 0:00:42]} Ne7 {[%emt 0:02:27]} 28. Ke3 {[%emt 0:02:58]} Rd7 {[%emt 0:02:35]} 29. Kd3 {[%emt 0:01:15]} Rad8 {[%emt 0:04:33]} 30. Be3 {[%emt 0:01:30]} c5 {[%emt 0:01:52]} 31. bxc5 {[%emt 0:06:34]} Bxc5 {[%emt 0:00:01]} 32. Rxb7 {[%emt 0:00:50]} Bb6 {[%emt 0:01:44]} 33. Rb1 {[%emt 0:00:04]} Rd5 {[%emt 0:01:30]} 34. Nc3 {[%emt 0:01:38]} Rxd4+ {[%emt 0:00:50]} 35. Bxd4 {[%emt 0:00:17]} Rxd4+ {[%emt 0:00:01]} 36. Ke2 {[%emt 0:00:27]} Ba5 {[%emt 0:00:47]} 37. Nd1 {[%emt 0:02:04]} Rxf4 {[%emt 0:00:06]} 38. Ra7 {[%emt 0:00:10]} Rxh4 {[%emt 0:00:59]} 39. Rxa6 {[%emt 0:00:51]} Re4+ 40. Kf3 {[%emt 0:00:00]} Rxe5 {[%emt 0:00:00]} 41. Ne3 {[%emt 0:00:15]} Rc5 {[%emt 0:02:40]} 42. a4 {[%emt 0:03:18]} Nc6 {[%emt 0:03:43]} 43. Kg3 {[%emt 0:10:18]} Nd4 {[%emt 0:14:16]} 44. Rd1 {[%emt 0:04:10]} Bc3 {[%emt 0:02:12]} 45. Rd3 {[%emt 0:02:12]} g5 {[%emt 0:03:45]} 46. Kh3 {[%emt 0:00:43]} g4+ {[%emt 0:02:05]} 47. Kh4 {[%emt 0:02:45]} f4 {[%emt 0:01:00]} 48. Nxg4 {[%emt 0:00:06]} hxg4 {[%emt 0:00:19]} 49. Kxg4 {[%emt 0:00:06]} Ne6 {[%emt 0:02:38]} 50. Rh3 {[%emt 0:01:12]} Bg7 {[%emt 0:01:45]} 51. Rh7 {[%emt 0:01:23]} Rg5+ {[%emt 0:00:13]} 52. Kf3 {[%emt 0:00:09]} Re5 {[%emt 0:00:30]} 53. Kg4 {[%emt 0:00:20]} Kg6 {[%emt 0:02:50]} 54. Rh1 {[%emt 0:01:03]} Rg5+ {[%emt 0:00:04]} 55. Kf3 {[%emt 0:00:12]} Kf5 {[%emt 0:00:10]} 56. Ra5+ {[%emt 0:00:56]} c5 {[%emt 0:00:14]} 57. Ke2 {[%emt 0:00:49]} Ke4 {[%emt 0:00:08]} 58. Ra7 {[%emt 0:14:38]} f3+ {[%emt 0:01:30]} 59. Kd2 {[%emt 0:00:22]} Bd4 {[%emt 0:01:38]} 60. Rh4+ {[%emt 0:00:42]} Kd5 {[%emt 0:00:11]} 61. Rf7 {[%emt 0:00:29]} Bxf2 {[%emt 0:00:40]} 62. Rh8 {[%emt 0:03:17]} (62. Rh1 $142 Nd4 63. Rd7+ Kc6 64. Rf7) 62... Nd4 {[%emt 0:00:15]} 63. a5 {[%emt 0:00:30]} Re5 {[%emt 0:00:57]} (63... Kc4 $142 64. Rhf8 Nb3+ 65. Kc2 Rg1) 64. a6 {[%emt 0:00:28]} Re2+ {[%emt 0:00:02]} 65. Kd1 {[%emt 0:00:48]} Re1+ {[%emt 0:00:13]} 66. Kd2 {[%emt 0:00:06]} Kc4 {[%emt 0:00:31]} 67. Rb7 {[%emt 0:02:40]} Re2+ {[%emt 0:00:16]} 68. Kc1 {[%emt 0:02:58]} Kc3 {[%emt 0:00:17]} 69. Kb1 {[%emt 0:00:24]} Nc2 {[%emt 0:01:30]} 70. Ka2 {[%emt 0:00:38]} Nb4+ {[%emt 0:00:06]} 71. Ka3 {[%emt 0:00:18]} Ra2# {[%emt 0:00:05]} 0-1

[Event "WYCC 2018 O16"]
[Site "Halkidiki"]
[Date "2018.10.20"]
[Round "1"]
[White "Rodriguez Izquierdo, Luis"]
[Black "Davtyan, Artur"]
[Result "0-1"]
[ECO "C51"]
[WhiteElo "2038"]
[BlackElo "2374"]
[Annotator "NA"]
[PlyCount "46"]
[EventDate "2018.10.20"]
[EventType "swiss"]
[EventCountry "GRE"]
[SourceTitle "playchess.com"]
[Source "ChessBase"]
[SourceQuality "1"]
[TimeControl "40/5400+30:1800+30"]

1. e4 {[%emt 0:00:00]} e5 {[%emt 0:00:00]} 2. Nf3 {[%emt 0:00:00]} Nc6 {[%emt 0:00:00]} 3. Bc4 {[%emt 0:00:00]} Bc5 {[%emt 0:00:01]} 4. b4 {[%emt 0:00:05]} Bxb4 {[%emt 0:00:18]} 5. c3 {[%emt 0:00:14]} Be7 {[%emt 0:11:54]} 6. d4 {[%emt 0:00:47]} d6 {[%emt 0:09:17] [#]} 7. Qb3 $1 {[%emt 0:03:28]} Kf8 {[%emt 0:02:17]} 8. Bxf7 {[%emt 0:01:53]} Nf6 {[%emt 0:00:04]} 9. Ng5 {[%emt 0:15:52]} exd4 {[%emt 0:15:36]} 10. Be6 {[%emt 0:09:17]} Na5 {[%emt 0:10:23]} 11. Qa4 {[%emt 0:02:38]} b6 {[%emt 0:00:25]} 12. O-O $15 {[%emt 0:07:20]} Nxe4 {[%emt 0:10:00]} 13. Bxc8 {[%emt 0:06:55]} Bxg5 {[%emt 0:08:40]} 14. Bf5 {[%emt 0:10:18]} Nc5 {[%emt 0:11:32]} 15. Qc2 {[%emt 0:05:36]} Bf6 {[%emt 0:07:15]} 16. cxd4 {[%emt 0:14:23]} Bxd4 {[%emt 0:00:01]} 17. Nc3 {[%emt 0:00:18]} Qf6 {[%emt 0:06:27]} 18. Bb2 {[%emt 0:03:44]} Qf7 {[%emt 0:00:01]} 19. Rae1 {[%emt 0:03:31]} Bf6 {[%emt 0:04:08]} 20. Bxh7 {[%emt 0:05:14]} Qh5 {[%emt 0:00:29]} 21. h3 {[%emt 0:01:20]} Qxh7 {[%emt 0:00:08]} 22. Qe2 {[%emt 0:00:40]} Qd3 {[%emt 0:00:12]} 23. Qg4 {[%emt 0:00:34]} Rh4 {[%emt 0:00:06]} 0-1

[Event "WYCC 2018 O16"]
[Site "Halkidiki"]
[Date "2018.10.20"]
[Round "1"]
[White "Triantos, Konstantinos"]
[Black "Abdisalimov, Abdimalik"]
[Result "0-1"]
[ECO "B50"]
[WhiteElo "2002"]
[BlackElo "2368"]
[Annotator "NA"]
[PlyCount "54"]
[EventDate "2018.10.20"]
[EventType "swiss"]
[EventCountry "GRE"]
[SourceTitle "playchess.com"]
[Source "ChessBase"]
[SourceQuality "1"]
[TimeControl "40/5400+30:1800+30"]

1. e4 {[%emt 0:00:00]} c5 {[%emt 0:00:00]} 2. Nf3 {[%emt 0:00:00]} d6 {[%emt 0:00:00]} 3. Nc3 {[%emt 0:00:00]} Nf6 {[%emt 0:00:00]} 4. e5 {[%emt 0:00:00]} dxe5 {[%emt 0:00:00]} 5. Nxe5 {[%emt 0:00:00]} a6 {[%emt 0:00:03]} 6. g3 {[%emt 0:00:00]} Nbd7 {[%emt 0:00:14]} 7. d4 {[%emt 0:00:19]} e6 {[%emt 0:06:17]} 8. Be3 {[%emt 0:14:15]} Qc7 {[%emt 0:04:31]} 9. Nxd7 {[%emt 0:05:58]} Bxd7 $15 {[%emt 0:01:26]} 10. Bg2 {[%emt 0:02:45]} Rd8 {[%emt 0:00:58]} 11. Qe2 {[%emt 0:22:00]} Bc6 {[%emt 0:00:47]} 12. Bf4 {[%emt 0:00:43]} Qc8 {[%emt 0:02:13]} 13. d5 {[%emt 0:02:24]} Nxd5 {[%emt 0:00:13]} 14. O-O-O {[%emt 0:04:21]} Nxc3 {[%emt 0:02:58]} 15. Bxc6+ {[%emt 0:06:30]} Qxc6 {[%emt 0:02:02]} 16. bxc3 {[%emt 0:00:35]} Be7 {[%emt 0:01:32]} 17. Rxd8+ {[%emt 0:02:43]} Bxd8 {[%emt 0:00:07]} 18. Rd1 {[%emt 0:00:03]} O-O {[%emt 0:00:06]} 19. Qd3 {[%emt 0:06:59]} Bf6 {[%emt 0:02:09]} 20. Qd7 {[%emt 0:03:51]} Qe4 {[%emt 0:02:40]} 21. Qc7 {[%emt 0:03:45]} Qa4 {[%emt 0:06:19]} 22. Qxc5 {[%emt 0:15:00]} b6 {[%emt 0:01:16]} 23. Qxb6 {[%emt 0:05:02]} Qxa2 {[%emt 0:00:40]} 24. Kd2 {[%emt 0:04:12]} Rc8 {[%emt 0:02:14]} 25. Qb3 {[%emt 0:00:22]} Qa5 {[%emt 0:00:25]} 26. Ke1 {[%emt 0:00:35]} Rxc3 {[%emt 0:01:38]} 27. Qb1 {[%emt 0:00:31]} Rb3+ 0-1

[Event "WYCC 2018 O16"]
[Site "Halkidiki"]
[Date "2018.10.20"]
[Round "1"]
[White "Kim, Yunseo"]
[Black "Stoleriu, George"]
[Result "0-1"]
[ECO "E20"]
[WhiteElo "1995"]
[BlackElo "2362"]
[Annotator "NA"]
[PlyCount "44"]
[EventDate "2018.10.20"]
[EventType "swiss"]
[EventCountry "GRE"]
[SourceTitle "playchess.com"]
[Source "ChessBase"]
[SourceQuality "1"]
[TimeControl "40/5400+30:1800+30"]

1. d4 {[%emt 0:00:00]} Nf6 {[%emt 0:00:00]} 2. c4 {[%emt 0:00:00]} e6 {[%emt 0:00:00]} 3. Nc3 {[%emt 0:00:09]} Bb4 {[%emt 0:00:00]} 4. g3 {[%emt 0:01:31]} O-O {[%emt 0:00:49]} 5. Bg2 {[%emt 0:00:15]} d6 {[%emt 0:00:09]} 6. e3 {[%emt 0:04:07]} Bxc3+ {[%emt 0:04:47]} 7. bxc3 {[%emt 0:00:17]} e5 {[%emt 0:01:42]} 8. Ne2 {[%emt 0:07:20]} e4 {[%emt 0:07:46]} 9. O-O {[%emt 0:03:55]} Nc6 {[%emt 0:02:54]} 10. Nf4 {[%emt 0:11:38]} Na5 {[%emt 0:07:18]} 11. Nd5 {[%emt 0:04:03]} Nxd5 {[%emt 0:16:10]} 12. cxd5 {[%emt 0:00:10]} f5 {[%emt 0:01:34]} 13. Qa4 {[%emt 0:12:23]} b6 $17 {[%emt 0:05:28]} 14. c4 {[%emt 0:14:35]} Qe8 {[%emt 0:21:09]} 15. Qc2 {[%emt 0:08:15]} Ba6 {[%emt 0:06:30]} 16. Rd1 {[%emt 0:16:28]} Bxc4 {[%emt 0:01:33]} 17. Bd2 {[%emt 0:01:22]} Be2 {[%emt 0:00:58]} 18. Re1 {[%emt 0:01:36]} Bd3 {[%emt 0:00:13]} 19. Qxc7 {[%emt 0:03:14]} Nc4 {[%emt 0:00:32]} 20. Bc1 {[%emt 0:03:30]} Rc8 {[%emt 0:00:22]} 21. Qb7 {[%emt 0:01:19]} Rf7 {[%emt 0:00:15]} 22. Qa6 {[%emt 0:00:07]} Na5 {[%emt 0:00:08]} 0-1

[Event "WYCC 2018 O16"]
[Site "Halkidiki"]
[Date "2018.10.20"]
[Round "1"]
[White "Duda, Daniel"]
[Black "Baenziger, Fabian"]
[Result "1/2-1/2"]
[ECO "E91"]
[WhiteElo "1985"]
[BlackElo "2355"]
[Annotator "NA"]
[PlyCount "70"]
[EventDate "2018.10.20"]
[EventType "swiss"]
[EventCountry "GRE"]
[SourceTitle "playchess.com"]
[Source "ChessBase"]
[SourceQuality "1"]
[TimeControl "40/5400+30:1800+30"]

1. d4 {[%emt 0:00:00]} Nf6 {[%emt 0:00:00]} 2. c4 {[%emt 0:00:00]} g6 {[%emt 0:00:02]} 3. Nc3 {[%emt 0:00:00]} Bg7 {[%emt 0:00:05]} 4. e4 {[%emt 0:00:00]} d6 {[%emt 0:00:06]} 5. Nf3 {[%emt 0:00:02]} O-O {[%emt 0:00:07]} 6. Be2 {[%emt 0:00:02]} Nbd7 {[%emt 0:00:47]} 7. O-O {[%emt 0:00:09]} e5 {[%emt 0:00:03]} 8. Qc2 {[%emt 0:00:33]} Re8 {[%emt 0:00:51]} 9. Rd1 {[%emt 0:02:33]} exd4 {[%emt 0:02:32]} 10. Nxd4 {[%emt 0:00:10]} c6 {[%emt 0:00:04]} 11. f3 {[%emt 0:04:45]} Qe7 {[%emt 0:04:35]} 12. Bg5 {[%emt 0:11:25]} Nc5 {[%emt 0:04:14]} 13. Kh1 {[%emt 0:16:10]} Qf8 {[%emt 0:13:36]} 14. Qd2 {[%emt 0:16:37]} Nfd7 {[%emt 0:07:13]} 15. Rac1 $14 {[%emt 0:18:00]} Ne5 {[%emt 0:06:12]} 16. h3 {[%emt 0:08:31]} a5 {[%emt 0:14:03]} 17. b3 {[%emt 0:01:41]} Ned3 {[%emt 0:16:17]} 18. Bxd3 {[%emt 0:01:03]} Bxd4 {[%emt 0:00:05]} 19. Ne2 {[%emt 0:06:00]} Be5 {[%emt 0:00:31]} 20. Bf4 {[%emt 0:04:48]} Ne6 {[%emt 0:01:41]} 21. Bh6 {[%emt 0:03:16]} Qe7 {[%emt 0:00:17]} 22. f4 {[%emt 0:00:54]} Bf6 {[%emt 0:01:26]} 23. Rf1 {[%emt 0:01:57]} Nc5 {[%emt 0:01:07]} 24. Ng3 {[%emt 0:00:36]} Bh4 {[%emt 0:03:39]} 25. Bg5 {[%emt 0:01:27]} Bxg5 {[%emt 0:00:39]} 26. fxg5 {[%emt 0:00:03]} Nxd3 {[%emt 0:00:49]} 27. Qxd3 {[%emt 0:00:00]} Qxg5 {[%emt 0:00:00]} 28. Qxd6 {[%emt 0:00:12]} Rd8 {[%emt 0:01:44]} 29. Qf4 {[%emt 0:00:58]} Qxf4 {[%emt 0:00:05]} 30. Rxf4 {[%emt 0:00:03]} Rd2 {[%emt 0:00:06]} 31. Rcf1 {[%emt 0:00:20]} Be6 {[%emt 0:00:04]} 32. R1f2 {[%emt 0:01:09]} Rad8 {[%emt 0:00:30]} 33. e5 {[%emt 0:01:01]} Rd1+ {[%emt 0:00:36]} 34. Kh2 {[%emt 0:00:16]} Re1 {[%emt 0:06:07]} 35. Ne4 {[%emt 0:00:25]} Rdd1 {[%emt 0:06:36]} 1/2-1/2

[Event "WYCC 2018 O16"]
[Site "Halkidiki"]
[Date "2018.10.20"]
[Round "1"]
[White "Arya Nirag Shah"]
[Black "Mitsis, Georgios"]
[Result "1/2-1/2"]
[ECO "A45"]
[WhiteElo "1952"]
[BlackElo "2350"]
[Annotator "NA"]
[PlyCount "99"]
[EventDate "2018.10.20"]
[EventType "swiss"]
[EventCountry "GRE"]
[SourceTitle "playchess.com"]
[Source "ChessBase"]
[SourceQuality "1"]
[TimeControl "40/5400+30:1800+30"]

1. d4 {[%emt 0:00:00]} Nf6 {[%emt 0:00:00]} 2. Bg5 {[%emt 0:00:00]} c5 {[%emt 0:00:11]} 3. Bxf6 {[%emt 0:00:02]} gxf6 {[%emt 0:00:38]} 4. d5 {[%emt 0:00:15]} Qb6 {[%emt 0:02:32]} 5. Qc1 {[%emt 0:00:16]} Bh6 {[%emt 0:03:57]} 6. e3 {[%emt 0:00:15]} f5 {[%emt 0:00:46]} 7. c4 {[%emt 0:00:37] A45: Trompowsky Attack} d6 {[%emt 0:06:56]} 8. Nc3 {[%emt 0:06:37]} Nd7 {[%emt 0:01:37]} 9. Qc2 {[%emt 0:05:51]} Ne5 {[%emt 0:01:47]} 10. Nf3 $146 {[%emt 0:07:42]} ({Predecessor:} 10. f4 Ng4 11. Qd2 Bg7 12. Rc1 Bd7 13. Bd3 a6 14. Nge2 Qb4 {1-0 (49) Vitiugov,N (2681)-Bu,X (2702) Sochi 2009}) 10... Nxf3+ {[%emt 0:05:02]} 11. gxf3 {[%emt 0:00:05]} f4 {[%emt 0:00:26]} 12. Qd2 {[%emt 0:12:45]} fxe3 {[%emt 0:09:20]} 13. fxe3 {[%emt 0:00:06]} Bg7 {[%emt 0:00:28]} 14. Rg1 {[%emt 0:10:01]} Bf6 {[%emt 0:01:27]} 15. O-O-O {[%emt 0:03:16]} Bf5 {[%emt 0:03:20]} 16. Bd3 {[%emt 0:00:56]} Bg6 {[%emt 0:00:36]} 17. f4 {[%emt 0:06:32]} Qa5 {[%emt 0:13:46]} 18. Kb1 {[%emt 0:08:31]} Bxc3 {[%emt 0:02:42]} 19. Qxc3 {[%emt 0:00:42]} Qxc3 {[%emt 0:00:08]} 20. bxc3 {[%emt 0:00:04]} Kd7 {[%emt 0:01:42]} 21. Kc2 {[%emt 0:04:24]} b5 {[%emt 0:06:04]} 22. cxb5 {[%emt 0:02:46]} c4 {[%emt 0:01:29]} 23. Bxg6 {[%emt 0:00:15]} hxg6 {[%emt 0:00:03]} 24. Rg2 {[%emt 0:03:24]} Rh3 {[%emt 0:00:08]} 25. Rd4 {[%emt 0:03:24]} Rc8 $11 {[%emt 0:06:08]} 26. Re4 {[%emt 0:05:35]} Rc5 {[%emt 0:00:35]} 27. a4 {[%emt 0:01:19]} Rxd5 {[%emt 0:02:19]} 28. Rxc4 {[%emt 0:01:34]} Rxe3 {[%emt 0:00:07]} 29. Kb3 {[%emt 0:04:54]} Rf3 {[%emt 0:03:26]} 30. h4 {[%emt 0:04:13]} Rdd3 {[%emt 0:03:47]} 31. Rc2 {[%emt 0:06:17]} d5 {[%emt 0:04:14]} 32. Rc6 {[%emt 0:00:56]} d4 {[%emt 0:00:38]} 33. Kb4 {[%emt 0:01:13]} Rxc3 {[%emt 0:12:41]} 34. R2xc3 {[%emt 0:00:55]} dxc3 {[%emt 0:00:10]} 35. Rc4 {[%emt 0:01:01]} c2 {[%emt 0:01:18]} 36. Ka5 {[%emt 0:00:25]} Rxf4 {[%emt 0:00:41]} 37. Rxc2 {[%emt 0:00:03]} Rxh4 {[%emt 0:04:32]} 38. Ra2 {[%emt 0:00:19]} Kc7 {[%emt 0:01:39]} 39. Ka6 {[%emt 0:00:11]} Kb8 {[%emt 0:00:07]} 40. a5 {[%emt 0:00:00]} Rd4 {[%emt 0:00:00]} 41. Rh2 {[%emt 0:03:24]} Rd8 {[%emt 0:00:50]} 42. Rf2 {[%emt 0:02:20]} f6 {[%emt 0:01:24]} 43. Rg2 {[%emt 0:00:11]} Rg8 {[%emt 0:00:12]} 44. Rd2 {[%emt 0:00:13]} e5 {[%emt 0:02:36]} 45. Rd7 {[%emt 0:00:20]} Re8 {[%emt 0:00:21]} 46. Rb7+ {[%emt 0:01:17]} Ka8 {[%emt 0:01:42]} 47. Rxa7+ {[%emt 0:00:11]} Kb8 {[%emt 0:00:04]} 48. Rb7+ {[%emt 0:00:05]} Ka8 {[%emt 0:00:20]} 49. Ra7+ {[%emt 0:00:05]} Kb8 {[%emt 0:00:05]} 50. Rb7+ {[%emt 0:00:02]} 1/2-1/2

[Event "WYCC 2018 O16"]
[Site "Halkidiki"]
[Date "2018.10.20"]
[Round "1"]
[White "Zenelaj, Samuel"]
[Black "Petriashvili, Nikoloz"]
[Result "0-1"]
[ECO "A36"]
[WhiteElo "1952"]
[BlackElo "2343"]
[Annotator "NA"]
[PlyCount "84"]
[EventDate "2018.10.20"]
[EventType "swiss"]
[EventCountry "GRE"]
[SourceTitle "playchess.com"]
[Source "ChessBase"]
[SourceQuality "1"]
[TimeControl "40/5400+30:1800+30"]

1. c4 {[%emt 0:00:00]} g6 {[%emt 0:00:00]} 2. Nc3 {[%emt 0:00:00]} Bg7 {[%emt 0:00:00]} 3. g3 {[%emt 0:00:00]} c5 {[%emt 0:00:00]} 4. Bg2 {[%emt 0:00:02]} Nc6 {[%emt 0:00:00]} 5. e3 {[%emt 0:00:13]} e5 {[%emt 0:01:28]} 6. Nge2 {[%emt 0:00:55]} Nge7 {[%emt 0:00:03]} 7. d3 {[%emt 0:00:55]} O-O {[%emt 0:00:11]} 8. O-O {[%emt 0:00:34]} d6 {[%emt 0:00:04]} 9. a3 {[%emt 0:01:02]} Bf5 {[%emt 0:09:49] A36: Symmetrical English vs ...g6: 4 Bg2 Bg7} 10. Nd5 $146 {[%emt 0:05:50]} ({Predecessor:} 10. Rb1 Qd7 11. b4 Rac8 12. Nd5 cxb4 13. Nxe7+ Nxe7 14. Rxb4 b6 15. Nc3 Bh3 16. Bxh3 Qxh3 17. Bd2 f5 18. c5 f4 19. exf4 bxc5 {1-0 (35) Istratescu,A (2556)-Miljanic,B (2429) Bucharest 2000}) 10... Rb8 {[%emt 0:02:16]} 11. Rb1 {[%emt 0:05:16]} b5 {[%emt 0:04:20]} 12. cxb5 {[%emt 0:05:07]} Rxb5 {[%emt 0:00:17]} 13. Nec3 {[%emt 0:01:03]} Rb8 {[%emt 0:00:14]} 14. b4 {[%emt 0:04:17]} Nxd5 {[%emt 0:09:00]} 15. Nxd5 {[%emt 0:01:55]} Ne7 {[%emt 0:00:49]} 16. Nxe7+ {[%emt 0:13:30]} Qxe7 {[%emt 0:00:02]} 17. e4 {[%emt 0:02:02]} Bd7 {[%emt 0:03:29]} 18. Be3 {[%emt 0:02:22]} cxb4 {[%emt 0:00:02]} 19. Rxb4 {[%emt 0:08:42]} Rxb4 {[%emt 0:02:44]} 20. axb4 {[%emt 0:00:10]} Bb5 {[%emt 0:00:03]} 21. Qb3 {[%emt 0:05:00]} Rc8 {[%emt 0:00:18]} 22. Ra1 {[%emt 0:02:24]} a6 {[%emt 0:00:10]} 23. Rc1 {[%emt 0:04:24]} Rxc1+ {[%emt 0:01:39]} 24. Bxc1 {[%emt 0:00:12]} Qc7 {[%emt 0:02:05]} 25. Bd2 {[%emt 0:03:00]} Bf6 {[%emt 0:00:08]} 26. Bf1 $11 {[%emt 0:02:29]} Bd8 {[%emt 0:01:51]} 27. Qc3 {[%emt 0:02:03]} Qxc3 {[%emt 0:00:32]} 28. Bxc3 {[%emt 0:00:06]} Bb6 {[%emt 0:00:02]} 29. Be2 {[%emt 0:03:14]} f5 {[%emt 0:00:17]} 30. Kf1 {[%emt 0:00:43]} Kf7 {[%emt 0:00:02]} 31. f3 {[%emt 0:11:18]} Ke6 {[%emt 0:00:07]} 32. d4 {[%emt 0:06:40]} fxe4 {[%emt 0:01:00]} 33. dxe5 {[%emt 0:02:26]} exf3 {[%emt 0:00:08]} 34. Bxb5 {[%emt 0:00:10]} axb5 {[%emt 0:00:02]} 35. exd6 {[%emt 0:00:11]} Kxd6 {[%emt 0:00:01]} 36. g4 {[%emt 0:01:25]} Kd5 {[%emt 0:00:05]} 37. h4 {[%emt 0:00:18]} Kc4 {[%emt 0:00:11]} 38. Bd2 {[%emt 0:00:12]} h5 {[%emt 0:00:05]} 39. gxh5 {[%emt 0:00:26]} gxh5 {[%emt 0:00:01]} 40. Ke1 {[%emt 0:00:00]} Ba7 {[%emt 0:00:00]} 41. Kf1 {[%emt 0:02:16]} Bd4 {[%emt 0:00:12]} 42. Be1 {[%emt 0:00:39]} Be3 {[%emt 0:00:01]} 0-1